[Event "*** Titled Tuesday 3|2 Blitz"]
[Site "Chess.com"]
[Date "2017.03.07"]
[Round "8"]
[White "AlexanderL"]
[Black "Abrito99"]
[Result "0-1"]
[WhiteElo "2547"]
[BlackElo "2411"]
[TimeControl "180+2"]
[EndTime "14:51:56 PST"]
[Termination "Abrito99 won by resignation"]

1. e4 {[%clk 0:03:02]} 1... e6 {[%clk 0:02:59.3]} 2. d4 {[%clk 0:02:51.3]} 2...
d5 {[%clk 0:03:00.5]} 3. Nc3 {[%clk 0:02:46.2]} 3... Bb4 {[%clk 0:03:01.1]} 4.
Ne2 {[%clk 0:02:44.7]} 4... Nc6 {[%clk 0:02:53.7]} 5. a3 {[%clk 0:02:28.7]} 5...
Ba5 {[%clk 0:02:54.1]} 6. b4 {[%clk 0:02:26.5]} 6... Bb6 {[%clk 0:02:55.2]} 7.
Bb2 {[%clk 0:02:26.1]} 7... Nge7 {[%clk 0:02:33.7]} 8. g3 {[%clk 0:02:26.1]}
8... e5 {[%clk 0:02:30.7]} 9. dxe5 {[%clk 0:02:15.1]} 9... Nxe5 {[%clk
0:02:24.5]} 10. Bg2 {[%clk 0:02:03.7]} 10... Nc4 {[%clk 0:01:20.7]} 11. Bc1
{[%clk 0:02:03.7]} 11... d4 {[%clk 0:01:21.6]} 12. Na4 {[%clk 0:02:04.3]} 12...
Nc6 {[%clk 0:01:09.2]} 13. Nxb6 {[%clk 0:02:05.1]} 13... axb6 {[%clk 0:01:08.8]}
14. b5 {[%clk 0:02:03.3]} 14... Nb4 {[%clk 0:01:08.5]} 15. O-O {[%clk 0:01:56]}
15... d3 {[%clk 0:01:04.7]} 16. cxd3 {[%clk 0:01:40.7]} 16... Qxd3 {[%clk
0:01:06.6]} 17. Nf4 {[%clk 0:01:31.1]} 17... Qxd1 {[%clk 0:00:33]} 18. Rxd1
{[%clk 0:01:32.1]} 18... O-O {[%clk 0:00:21.1]} 19. Bf1 {[%clk 0:00:58.9]} 19...
Bg4 {[%clk 0:00:20.6]} 20. Rd4 {[%clk 0:00:35.3]} 20... Nc2 {[%clk 0:00:21]} 21.
Rxc4 {[%clk 0:00:36.6]} 21... Nxa1 {[%clk 0:00:22.2]} 22. Rc3 {[%clk 0:00:38.3]}
22... Rfd8 {[%clk 0:00:21]} 23. Nd5 {[%clk 0:00:39.7]} 23... c6 {[%clk
0:00:17.6]} 24. bxc6 {[%clk 0:00:34.1]} 24... bxc6 {[%clk 0:00:18.1]} 25. Ne3
{[%clk 0:00:33.2]} 25... Be6 {[%clk 0:00:17]} 26. Bb2 {[%clk 0:00:33.3]} 26...
Nb3 {[%clk 0:00:16.6]} 27. Rxc6 {[%clk 0:00:34.7]} 27... Nd4 {[%clk 0:00:14.6]}
28. Rxb6 {[%clk 0:00:35.2]} 28... Nf3+ {[%clk 0:00:14.6]} 29. Kh1 {[%clk
0:00:36.5]} 29... Nd2 {[%clk 0:00:15]} 30. Bg2 {[%clk 0:00:35]} 30... Rab8
{[%clk 0:00:15.4]} 31. Bd4 {[%clk 0:00:29.7]} 31... Rxb6 {[%clk 0:00:13.6]} 32.
Bxb6 {[%clk 0:00:30.9]} 32... Rb8 {[%clk 0:00:14.7]} 0-1

[Event "*** Titled Tuesday 3|2 Blitz"]
[Site "Chess.com"]
[Date "2017.03.07"]
[Round "8"]
[White "VeraNebolsina"]
[Black "rithwik2002"]
[Result "1/2-1/2"]
[WhiteElo "1631"]
[BlackElo "1786"]
[TimeControl "180+2"]
[EndTime "14:51:56 PST"]
[Termination "Game drawn by repetition"]

1. e4 {[%clk 0:03:02]} 1... c5 {[%clk 0:02:55.5]} 2. Nf3 {[%clk 0:03:02.5]} 2...
d6 {[%clk 0:02:56.6]} 3. d4 {[%clk 0:03:01]} 3... cxd4 {[%clk 0:02:58.5]} 4.
Nxd4 {[%clk 0:03:02.1]} 4... Nf6 {[%clk 0:02:59.5]} 5. Nc3 {[%clk 0:03:03.3]}
5... a6 {[%clk 0:03:01]} 6. f3 {[%clk 0:03:00.2]} 6... e5 {[%clk 0:03:00.8]} 7.
Nb3 {[%clk 0:03:00.7]} 7... Be6 {[%clk 0:03:02.3]} 8. Be3 {[%clk 0:03:01.6]}
8... Be7 {[%clk 0:03:03.9]} 9. Qd2 {[%clk 0:03:02.7]} 9... O-O {[%clk
0:03:05.5]} 10. O-O-O {[%clk 0:03:03.7]} 10... a5 {[%clk 0:03:05.9]} 11. Kb1
{[%clk 0:02:54.4]} 11... a4 {[%clk 0:02:37.7]} 12. Nc1 {[%clk 0:02:55.3]} 12...
a3 {[%clk 0:02:11.9]} 13. b3 {[%clk 0:02:55.3]} 13... Na6 {[%clk 0:02:09.7]} 14.
g4 {[%clk 0:02:34.9]} 14... Nb4 {[%clk 0:02:07.5]} 15. g5 {[%clk 0:02:32.2]}
15... Nh5 {[%clk 0:02:03.8]} 16. Nb5 {[%clk 0:02:22.2]} 16... d5 {[%clk
0:01:56.7]} 17. c3 {[%clk 0:02:22.9]} 17... Qa5 {[%clk 0:01:20.7]} 18. cxb4
{[%clk 0:02:04.1]} 18... Bxb4 {[%clk 0:01:22.6]} 19. Qf2 {[%clk 0:02:04.5]}
19... d4 {[%clk 0:01:16.4]} 20. Bd2 {[%clk 0:02:03.8]} 20... Rfc8 {[%clk
0:01:10]} 21. Bxb4 {[%clk 0:01:58.9]} 21... Qxb4 {[%clk 0:01:08.2]} 22. Qd2
{[%clk 0:01:57.2]} 22... Qc5 {[%clk 0:01:03.5]} 23. Bd3 {[%clk 0:01:41.1]} 23...
Nf4 {[%clk 0:00:58.7]} 24. b4 {[%clk 0:01:10.9]} 24... Qb6 {[%clk 0:00:50.1]}
25. Bf1 {[%clk 0:00:47.6]} 25... Bc4 {[%clk 0:00:44]} 26. Nxa3 {[%clk
0:00:24.5]} 26... Rxa3 {[%clk 0:00:38.7]} 27. Qb2 {[%clk 0:00:25.6]} 27... Rxf3
{[%clk 0:00:32.2]} 28. Bxc4 {[%clk 0:00:22.2]} 28... Rxc4 {[%clk 0:00:25.5]} 29.
a3 {[%clk 0:00:23.4]} 29... Qc6 {[%clk 0:00:20.8]} 30. Nb3 {[%clk 0:00:20.7]}
30... Qxe4+ {[%clk 0:00:21]} 31. Ka1 {[%clk 0:00:20.3]} 31... Rc2 {[%clk
0:00:21.4]} 32. Rc1 {[%clk 0:00:19.1]} 32... Rfc3 {[%clk 0:00:18.9]} 33. Rxc2
{[%clk 0:00:19.3]} 33... Rxc2 {[%clk 0:00:19]} 34. Rc1 {[%clk 0:00:20.9]} 34...
Rxc1+ {[%clk 0:00:11.4]} 35. Qxc1 {[%clk 0:00:21.8]} 35... g6 {[%clk 0:00:12]}
36. Qc8+ {[%clk 0:00:22.4]} 36... Kg7 {[%clk 0:00:12.9]} 37. Qd8 {[%clk
0:00:24.1]} 37... Qe1+ {[%clk 0:00:13.4]} 38. Ka2 {[%clk 0:00:23.6]} 38... Qc3
{[%clk 0:00:14.4]} 39. Qf6+ {[%clk 0:00:23.9]} 39... Kf8 {[%clk 0:00:13.9]} 40.
Qd8+ {[%clk 0:00:25.5]} 40... Kg7 {[%clk 0:00:14.7]} 41. Qf6+ {[%clk 0:00:27.1]}
41... Kg8 {[%clk 0:00:16.1]} 42. Qd8+ {[%clk 0:00:27.7]} 42... Kg7 {[%clk
0:00:15.7]} 43. Qf6+ {[%clk 0:00:28.9]} 43... Kf8 {[%clk 0:00:16.2]} 44. Qd8+
{[%clk 0:00:30]} 44... Kg7 {[%clk 0:00:18]} 45. Qf6+ {[%clk 0:00:31.2]} 1/2-1/2

[Event "*** Titled Tuesday 3|2 Blitz"]
[Site "Chess.com"]
[Date "2017.03.07"]
[Round "8"]
[White "Tirantes"]
[Black "jcgs1030"]
[Result "1/2-1/2"]
[WhiteElo "2275"]
[BlackElo "2294"]
[TimeControl "180+2"]
[EndTime "14:52:01 PST"]
[Termination "Game drawn by repetition"]

1. e4 {[%clk 0:03:02]} 1... c5 {[%clk 0:02:59.8]} 2. Nf3 {[%clk 0:03:01.9]} 2...
d6 {[%clk 0:02:58.9]} 3. Bb5+ {[%clk 0:03:02.1]} 3... Bd7 {[%clk 0:02:59.1]} 4.
Bxd7+ {[%clk 0:03:02.5]} 4... Qxd7 {[%clk 0:03:01]} 5. c4 {[%clk 0:03:02]} 5...
Nc6 {[%clk 0:03:01.9]} 6. Nc3 {[%clk 0:02:57.6]} 6... Nf6 {[%clk 0:03:01.4]} 7.
O-O {[%clk 0:02:58.1]} 7... g6 {[%clk 0:03:01.5]} 8. d4 {[%clk 0:02:58.9]} 8...
cxd4 {[%clk 0:03:03.4]} 9. Nxd4 {[%clk 0:02:59.5]} 9... Bg7 {[%clk 0:03:05.3]}
10. Re1 {[%clk 0:02:44.5]} 10... O-O {[%clk 0:03:05.7]} 11. Nde2 {[%clk
0:02:25.8]} 11... Rac8 {[%clk 0:03:01.1]} 12. Bg5 {[%clk 0:02:21.3]} 12... Qg4
{[%clk 0:02:54.7]} 13. Bxf6 {[%clk 0:02:14.3]} 13... Bxf6 {[%clk 0:02:55.2]} 14.
Rc1 {[%clk 0:02:12]} 14... Rfd8 {[%clk 0:02:51.3]} 15. b3 {[%clk 0:02:11.3]}
15... h5 {[%clk 0:02:44.1]} 16. h3 {[%clk 0:02:05.6]} 16... Qd7 {[%clk
0:02:43.5]} 17. Qd2 {[%clk 0:02:01.8]} 17... Qc7 {[%clk 0:02:37.6]} 18. Nd5
{[%clk 0:02:02]} 18... Qa5 {[%clk 0:02:36.2]} 19. Nxf6+ {[%clk 0:01:58.9]} 19...
exf6 {[%clk 0:02:38.1]} 20. Qxa5 {[%clk 0:01:56.8]} 20... Nxa5 {[%clk 0:02:40]}
21. Nc3 {[%clk 0:01:54.5]} 21... Nc6 {[%clk 0:02:33.4]} 22. Red1 {[%clk
0:01:51]} 22... Kg7 {[%clk 0:02:32.7]} 23. Nb5 {[%clk 0:01:40.5]} 23... Rd7
{[%clk 0:02:08.8]} 24. Rxd6 {[%clk 0:01:32.5]} 24... Re7 {[%clk 0:02:08.4]} 25.
Nc3 {[%clk 0:01:20.3]} 25... a6 {[%clk 0:02:04.5]} 26. Kf1 {[%clk 0:01:13.5]}
26... Nb4 {[%clk 0:01:51.5]} 27. a3 {[%clk 0:01:08.2]} 27... Nc6 {[%clk
0:01:51.4]} 28. Rb1 {[%clk 0:00:40.2]} 28... Na5 {[%clk 0:01:46.5]} 29. f3
{[%clk 0:00:34.7]} 29... Rc6 {[%clk 0:01:43.9]} 30. Rd5 {[%clk 0:00:30]} 30...
b5 {[%clk 0:01:42.1]} 31. Ke2 {[%clk 0:00:26.5]} 31... f5 {[%clk 0:01:37]} 32.
Kd2 {[%clk 0:00:26.4]} 32... fxe4 {[%clk 0:01:36.5]} 33. Nxe4 {[%clk 0:00:27]}
33... f5 {[%clk 0:01:22.6]} 34. Ng5 {[%clk 0:00:26.9]} 34... Rb6 {[%clk
0:01:11.9]} 35. h4 {[%clk 0:00:26.9]} 35... Nb7 {[%clk 0:01:07.2]} 36. c5 {[%clk
0:00:26.5]} 36... Rc6 {[%clk 0:01:06]} 37. b4 {[%clk 0:00:27.6]} 37... a5 {[%clk
0:01:03.2]} 38. Re1 {[%clk 0:00:28.4]} 38... Rxe1 {[%clk 0:01:00.1]} 39. Kxe1
{[%clk 0:00:29.4]} 39... Kf6 {[%clk 0:00:55.8]} 40. Rd7 {[%clk 0:00:29.1]} 40...
Nxc5 {[%clk 0:00:56.5]} 41. bxc5 {[%clk 0:00:28.6]} 41... Rxc5 {[%clk
0:00:58.4]} 42. Rd6+ {[%clk 0:00:28.8]} 42... Ke5 {[%clk 0:00:57.3]} 43. Re6+
{[%clk 0:00:28.6]} 43... Kf4 {[%clk 0:00:56.4]} 44. Rxg6 {[%clk 0:00:25.2]}
44... Rc3 {[%clk 0:00:57.4]} 45. Nh3+ {[%clk 0:00:22.3]} 45... Ke3 {[%clk
0:00:55.5]} 46. Re6+ {[%clk 0:00:22.9]} 46... Kd4 {[%clk 0:00:56.5]} 47. Nf4
{[%clk 0:00:21]} 47... Rxa3 {[%clk 0:00:56.5]} 48. Nxh5 {[%clk 0:00:20.2]} 48...
b4 {[%clk 0:00:57.3]} 49. Nf4 {[%clk 0:00:20]} 49... b3 {[%clk 0:00:57.7]} 50.
Ne2+ {[%clk 0:00:20.9]} 50... Kd3 {[%clk 0:00:58.2]} 51. Rd6+ {[%clk 0:00:21.2]}
51... Ke3 {[%clk 0:00:59.1]} 52. Re6+ {[%clk 0:00:22.4]} 52... Kd3 {[%clk
0:01:00]} 53. Rd6+ {[%clk 0:00:22.6]} 53... Ke3 {[%clk 0:01:01]} 54. Re6+ {[%clk
0:00:19.6]} 54... Kd3 {[%clk 0:01:02.2]} 55. Rd6+ {[%clk 0:00:20.2]} 55... Ke3
{[%clk 0:01:03.4]} 56. Re6+ {[%clk 0:00:21]} 56... Kd3 {[%clk 0:01:04.7]}
1/2-1/2

[Event "*** Titled Tuesday 3|2 Blitz"]
[Site "Chess.com"]
[Date "2017.03.07"]
[Round "8"]
[White "SergeiAza"]
[Black "Vamostodorecto"]
[Result "1-0"]
[WhiteElo "2594"]
[BlackElo "2394"]
[TimeControl "180+2"]
[EndTime "14:52:18 PST"]
[Termination "SergeiAza won by resignation"]

1. e4 {[%clk 0:03:02]} 1... e5 {[%clk 0:02:57.3]} 2. Nf3 {[%clk 0:03:02.8]} 2...
Nc6 {[%clk 0:02:58.5]} 3. Bb5 {[%clk 0:03:03.4]} 3... a6 {[%clk 0:02:59.2]} 4.
Ba4 {[%clk 0:03:04.4]} 4... Nf6 {[%clk 0:03:00.3]} 5. O-O {[%clk 0:03:05.9]}
5... b5 {[%clk 0:03:01.1]} 6. Bb3 {[%clk 0:03:06.2]} 6... Bb7 {[%clk 0:03:03]}
7. Re1 {[%clk 0:03:05.6]} 7... Bc5 {[%clk 0:03:03.1]} 8. c3 {[%clk 0:03:06.2]}
8... d6 {[%clk 0:03:04.3]} 9. a4 {[%clk 0:03:03.5]} 9... Bb6 {[%clk 0:02:56.1]}
10. d4 {[%clk 0:03:03.8]} 10... O-O {[%clk 0:02:47.8]} 11. Bg5 {[%clk
0:03:04.1]} 11... h6 {[%clk 0:02:47.9]} 12. Bh4 {[%clk 0:03:05.2]} 12... g5
{[%clk 0:02:47.5]} 13. Nxg5 {[%clk 0:03:06.1]} 13... hxg5 {[%clk 0:02:46.6]} 14.
Bxg5 {[%clk 0:03:07.7]} 14... exd4 {[%clk 0:02:37.2]} 15. cxd4 {[%clk
0:03:08.5]} 15... Nxd4 {[%clk 0:02:27.5]} 16. Bd5 {[%clk 0:03:09.5]} 16... c6
{[%clk 0:02:10.7]} 17. Ra3 {[%clk 0:02:58.7]} 17... Kg7 {[%clk 0:01:31.7]} 18.
Rg3 {[%clk 0:02:21.6]} 18... Rh8 {[%clk 0:01:29.9]} 19. Bh6+ {[%clk 0:01:33.5]}
19... Kh7 {[%clk 0:00:26.6]} 20. Bg7 {[%clk 0:01:31.4]} 20... Rg8 {[%clk
0:00:21]} 21. Bxf6 {[%clk 0:01:23.3]} 21... Qxf6 {[%clk 0:00:16.5]} 22. e5
{[%clk 0:00:57.9]} 22... Qxf2+ {[%clk 0:00:07.4]} 23. Kxf2 {[%clk 0:00:56.2]}
23... Nf5+ {[%clk 0:00:08.8]} 24. Kf1 {[%clk 0:00:50.1]} 24... Nxg3+ {[%clk
0:00:09.7]} 25. hxg3 {[%clk 0:00:49.3]} 25... cxd5 {[%clk 0:00:11.2]} 26. Qh5+
{[%clk 0:00:49.5]} 26... Kg7 {[%clk 0:00:11.6]} 27. Qg5+ {[%clk 0:00:49.2]}
27... Kf8 {[%clk 0:00:12.2]} 28. Qh6+ {[%clk 0:00:49.6]} 28... Rg7 {[%clk
0:00:13.2]} 29. exd6 {[%clk 0:00:46.6]} 29... Ba5 {[%clk 0:00:12]} 30. Re7
{[%clk 0:00:43.3]} 30... Rd8 {[%clk 0:00:12.1]} 31. Rxb7 {[%clk 0:00:40.4]}
31... Kg8 {[%clk 0:00:11.1]} 32. Nc3 {[%clk 0:00:37.5]} 32... Rg6 {[%clk
0:00:12.7]} 33. Qf4 {[%clk 0:00:36.9]} 33... Rf8 {[%clk 0:00:07.4]} 34. Nxd5
{[%clk 0:00:35]} 34... Bd8 {[%clk 0:00:06.5]} 35. Ne7+ {[%clk 0:00:33.4]} 35...
Bxe7 {[%clk 0:00:07.6]} 36. dxe7 {[%clk 0:00:34.4]} 36... Re8 {[%clk 0:00:09.3]}
37. Rd7 {[%clk 0:00:33.1]} 37... Kg7 {[%clk 0:00:09.9]} 38. Qd4+ {[%clk
0:00:29.8]} 38... Rf6+ {[%clk 0:00:08.9]} 39. Kg1 {[%clk 0:00:29.9]} 39... Kg6
{[%clk 0:00:10.3]} 40. Rd6 {[%clk 0:00:29.4]} 40... Re6 {[%clk 0:00:09.2]} 41.
Rxe6+ {[%clk 0:00:29.4]} 41... fxe6 {[%clk 0:00:11.1]} 42. Qd6 {[%clk
0:00:28.1]} 42... Kf6 {[%clk 0:00:10.4]} 43. a5 {[%clk 0:00:26.8]} 43... Rxe7
{[%clk 0:00:10.7]} 44. Qxa6 {[%clk 0:00:27.9]} 44... b4 {[%clk 0:00:10.5]} 45.
Qb6 {[%clk 0:00:28.5]} 45... b3 {[%clk 0:00:09.7]} 46. a6 {[%clk 0:00:28.8]}
46... Rb7 {[%clk 0:00:09.2]} 47. Qxb7 {[%clk 0:00:29]} 1-0

[Event "*** Titled Tuesday 3|2 Blitz"]
[Site "Chess.com"]
[Date "2017.03.07"]
[Round "8"]
[White "rasmussvane"]
[Black "DeviatkinAndrey"]
[Result "0-1"]
[WhiteElo "2496"]
[BlackElo "2555"]
[TimeControl "180+2"]
[EndTime "14:52:44 PST"]
[Termination "DeviatkinAndrey won by resignation"]

1. Nf3 {[%clk 0:03:02]} 1... d5 {[%clk 0:02:58]} 2. d4 {[%clk 0:03:02.7]} 2...
Nf6 {[%clk 0:02:57.6]} 3. c4 {[%clk 0:03:03.5]} 3... c6 {[%clk 0:02:59.1]} 4.
Nc3 {[%clk 0:03:03.8]} 4... dxc4 {[%clk 0:02:59.1]} 5. a4 {[%clk 0:03:04.7]}
5... Bf5 {[%clk 0:02:59.7]} 6. Ne5 {[%clk 0:03:05.7]} 6... Nbd7 {[%clk
0:02:59.9]} 7. Nxc4 {[%clk 0:03:07.1]} 7... Nb6 {[%clk 0:03:01.1]} 8. Ne5 {[%clk
0:03:07.4]} 8... a5 {[%clk 0:03:02.4]} 9. Bg5 {[%clk 0:03:08.3]} 9... g6 {[%clk
0:02:59.3]} 10. e3 {[%clk 0:03:07.3]} 10... Bg7 {[%clk 0:02:58.9]} 11. Bd3
{[%clk 0:03:08.3]} 11... Be6 {[%clk 0:02:53.1]} 12. Be2 {[%clk 0:03:04]} 12...
O-O {[%clk 0:02:52.8]} 13. O-O {[%clk 0:03:04.8]} 13... Nbd5 {[%clk 0:02:38.8]}
14. Bf3 {[%clk 0:02:33.6]} 14... Nxc3 {[%clk 0:02:14.8]} 15. bxc3 {[%clk
0:02:33.6]} 15... Nd5 {[%clk 0:02:16.4]} 16. Bxd5 {[%clk 0:02:15.7]} 16... cxd5
{[%clk 0:01:44.3]} 17. Nd3 {[%clk 0:02:11.1]} 17... b6 {[%clk 0:01:41.3]} 18.
Nf4 {[%clk 0:02:06.6]} 18... Bf5 {[%clk 0:01:41.7]} 19. Qb3 {[%clk 0:02:06]}
19... f6 {[%clk 0:01:38.4]} 20. Bh4 {[%clk 0:01:59.6]} 20... g5 {[%clk
0:00:49.8]} 21. Qxd5+ {[%clk 0:01:53.3]} 21... e6 {[%clk 0:00:51.1]} 22. Qxd8
{[%clk 0:01:47.2]} 22... Rfxd8 {[%clk 0:00:51.6]} 23. e4 {[%clk 0:01:41.5]}
23... Bxe4 {[%clk 0:00:48.5]} 24. Nxe6 {[%clk 0:01:42.5]} 24... gxh4 {[%clk
0:00:43.4]} 25. Nxd8 {[%clk 0:01:43.6]} 25... Rxd8 {[%clk 0:00:45.1]} 26. Rfe1
{[%clk 0:01:45.1]} 26... f5 {[%clk 0:00:45.6]} 27. f3 {[%clk 0:01:38.8]} 27...
Bd5 {[%clk 0:00:46.5]} 28. Rab1 {[%clk 0:01:38.7]} 28... Rd6 {[%clk 0:00:43.9]}
29. Re7 {[%clk 0:01:39.7]} 29... h3 {[%clk 0:00:33.2]} 30. gxh3 {[%clk
0:01:08.8]} 30... Rc6 {[%clk 0:00:34.2]} 31. Kf2 {[%clk 0:01:05.3]} 31... Rxc3
{[%clk 0:00:34.1]} 32. Rg1 {[%clk 0:01:05.7]} 32... Bf7 {[%clk 0:00:34.8]} 33.
Rd1 {[%clk 0:00:56.6]} 33... Kf8 {[%clk 0:00:34.3]} 34. Rb7 {[%clk 0:00:56.2]}
34... Bd5 {[%clk 0:00:34.3]} 35. Rxb6 {[%clk 0:00:55]} 35... Rxf3+ {[%clk
0:00:34.8]} 36. Ke1 {[%clk 0:00:53.3]} 36... Rxh3 {[%clk 0:00:33.7]} 37. Rb5
{[%clk 0:00:54.3]} 37... Be4 {[%clk 0:00:33.7]} 38. Rd2 {[%clk 0:00:39.3]} 38...
Bh6 {[%clk 0:00:29.1]} 39. Rdb2 {[%clk 0:00:40.3]} 39... Ra3 {[%clk 0:00:21.3]}
40. Rxa5 {[%clk 0:00:39.5]} 40... Kg7 {[%clk 0:00:14]} 41. Rb6 {[%clk
0:00:36.1]} 41... Ra1+ {[%clk 0:00:10.7]} 42. Ke2 {[%clk 0:00:36.3]} 42... Ra2+
{[%clk 0:00:11.8]} 43. Kd1 {[%clk 0:00:23.3]} 43... Bf3+ {[%clk 0:00:10.3]} 44.
Ke1 {[%clk 0:00:24.8]} 44... Bd2+ {[%clk 0:00:11.5]} 45. Kf1 {[%clk 0:00:26.2]}
45... Bxa5 {[%clk 0:00:12.6]} 46. Rb5 {[%clk 0:00:27.2]} 46... Rxa4 {[%clk
0:00:13]} 47. Rxf5 {[%clk 0:00:28.2]} 47... Be4 {[%clk 0:00:13]} 48. Re5 {[%clk
0:00:29.5]} 48... Bg6 {[%clk 0:00:12.8]} 49. d5 {[%clk 0:00:29.7]} 49... Ra1+
{[%clk 0:00:13.1]} 50. Kg2 {[%clk 0:00:30.3]} 50... Bb4 {[%clk 0:00:14.7]} 51.
Re6 {[%clk 0:00:30.6]} 51... Rd1 {[%clk 0:00:15]} 52. Rb6 {[%clk 0:00:30.8]}
52... Bc5 {[%clk 0:00:15.3]} 53. Rb7+ {[%clk 0:00:32.2]} 53... Kf6 {[%clk
0:00:16.5]} 0-1

[Event "*** Titled Tuesday 3|2 Blitz"]
[Site "Chess.com"]
[Date "2017.03.07"]
[Round "8"]
[White "StellarChessPro"]
[Black "plouarzel"]
[Result "1-0"]
[WhiteElo "2341"]
[BlackElo "2346"]
[TimeControl "180+2"]
[EndTime "14:53:04 PST"]
[Termination "StellarChessPro won by checkmate"]

1. d4 {[%clk 0:03:01.9]} 1... Nf6 {[%clk 0:03:00.2]} 2. Bg5 {[%clk 0:03:02.3]}
2... e6 {[%clk 0:03:00.8]} 3. e4 {[%clk 0:03:02.7]} 3... h6 {[%clk 0:03:02.1]}
4. Bxf6 {[%clk 0:03:03.9]} 4... Qxf6 {[%clk 0:03:04]} 5. c3 {[%clk 0:03:05.8]}
5... d5 {[%clk 0:03:04.9]} 6. Bd3 {[%clk 0:03:06]} 6... c5 {[%clk 0:03:03.2]} 7.
Ne2 {[%clk 0:03:07]} 7... Nc6 {[%clk 0:03:03.6]} 8. exd5 {[%clk 0:03:07.1]} 8...
exd5 {[%clk 0:03:02.5]} 9. O-O {[%clk 0:03:08.7]} 9... cxd4 {[%clk 0:02:53.9]}
10. Nxd4 {[%clk 0:03:09.5]} 10... Nxd4 {[%clk 0:02:51.3]} 11. cxd4 {[%clk
0:03:10.5]} 11... Bd6 {[%clk 0:02:33.2]} 12. Bb5+ {[%clk 0:03:05.4]} 12... Kf8
{[%clk 0:02:34.5]} 13. Re1 {[%clk 0:03:04.6]} 13... Be6 {[%clk 0:02:31.8]} 14.
Nc3 {[%clk 0:02:57.7]} 14... h5 {[%clk 0:02:14.8]} 15. Qe2 {[%clk 0:02:43.8]}
15... h4 {[%clk 0:02:07.4]} 16. Nxd5 {[%clk 0:02:29.4]} 16... Qg5 {[%clk
0:02:08.8]} 17. Nc3 {[%clk 0:02:06.9]} 17... Qf4 {[%clk 0:02:01.8]} 18. g3
{[%clk 0:01:51.4]} 18... hxg3 {[%clk 0:02:03.6]} 19. fxg3 {[%clk 0:01:46.1]}
19... Qxd4+ {[%clk 0:02:04.6]} 20. Kg2 {[%clk 0:01:22.8]} 20... Bh3+ {[%clk
0:01:51.1]} 21. Kh1 {[%clk 0:01:23.2]} 21... Be6 {[%clk 0:01:03.6]} 22. Rad1
{[%clk 0:01:21.4]} 22... Qc5 {[%clk 0:00:57.2]} 23. Qg2 {[%clk 0:00:51.5]} 23...
Qb6 {[%clk 0:00:40.9]} 24. a4 {[%clk 0:00:49.5]} 24... a6 {[%clk 0:00:41.3]} 25.
a5 {[%clk 0:00:43]} 25... Qc7 {[%clk 0:00:40.1]} 26. Ne4 {[%clk 0:00:35.7]}
26... Be7 {[%clk 0:00:36.7]} 27. Bd3 {[%clk 0:00:31]} 27... Qxa5 {[%clk
0:00:36.3]} 28. Bb1 {[%clk 0:00:28.2]} 28... Qb4 {[%clk 0:00:32.8]} 29. Qf2
{[%clk 0:00:28.2]} 29... Rd8 {[%clk 0:00:31.7]} 30. Rxd8+ {[%clk 0:00:28.6]}
30... Bxd8 {[%clk 0:00:33]} 31. Nc3 {[%clk 0:00:28.4]} 31... Bf6 {[%clk
0:00:30.1]} 32. Qd2 {[%clk 0:00:25.5]} 32... Qb6 {[%clk 0:00:25.5]} 33. Be4
{[%clk 0:00:26.7]} 33... g6 {[%clk 0:00:23.7]} 34. Bg2 {[%clk 0:00:26.3]} 34...
Kg7 {[%clk 0:00:23.9]} 35. Rf1 {[%clk 0:00:27.3]} 35... Qd8 {[%clk 0:00:17.7]}
36. Qf2 {[%clk 0:00:26.5]} 36... b5 {[%clk 0:00:15.5]} 37. Ne4 {[%clk
0:00:25.8]} 37... Bxb2 {[%clk 0:00:16.1]} 38. Qxb2+ {[%clk 0:00:26.2]} 38... Kh6
{[%clk 0:00:13.8]} 39. Nf6 {[%clk 0:00:24.3]} 39... Bf5 {[%clk 0:00:13.5]} 40.
Ne4 {[%clk 0:00:23.8]} 40... Qb6 {[%clk 0:00:09.7]} 41. Qc1+ {[%clk 0:00:24]}
41... Kg7 {[%clk 0:00:10.6]} 42. Qf4 {[%clk 0:00:22.9]} 42... Qe6 {[%clk
0:00:06.4]} 43. Ng5 {[%clk 0:00:23.1]} 43... Qf6 {[%clk 0:00:06.3]} 44. Ne4
{[%clk 0:00:23.2]} 44... Qe6 {[%clk 0:00:06.5]} 45. Nc5 {[%clk 0:00:24.2]} 45...
Qb6 {[%clk 0:00:06.4]} 46. Qd4+ {[%clk 0:00:23.8]} 46... Kh7 {[%clk 0:00:05.5]}
47. Qd5 {[%clk 0:00:22.4]} 47... Qa7 {[%clk 0:00:03.8]} 48. Qe5 {[%clk
0:00:20.9]} 48... Rc8 {[%clk 0:00:04.4]} 49. Ne4 {[%clk 0:00:22]} 49... Bxe4
{[%clk 0:00:05.6]} 50. Bxe4 {[%clk 0:00:21.8]} 50... Rc7 {[%clk 0:00:06.9]} 51.
Qf4 {[%clk 0:00:21.7]} 51... Kg7 {[%clk 0:00:08]} 52. Qf6+ {[%clk 0:00:22.8]}
52... Kh7 {[%clk 0:00:08.6]} 53. Kg2 {[%clk 0:00:24.7]} 53... b4 {[%clk
0:00:09.6]} 54. h4 {[%clk 0:00:24.6]} 54... a5 {[%clk 0:00:08.9]} 55. h5 {[%clk
0:00:26.1]} 55... b3 {[%clk 0:00:03.3]} 56. hxg6+ {[%clk 0:00:27.4]} 56... fxg6
{[%clk 0:00:04.8]} 57. Rh1+ {[%clk 0:00:28.6]} 57... Kg8 {[%clk 0:00:05.7]} 58.
Rh8# {[%clk 0:00:29.7]} 1-0